[Event "Titled Tuesday Blitz January 18 2022"]
[White "Kadam, Om Manish"]
[Black "Yeletsky, Ivan"]
[WhiteFideId "45076294"]
[BlackFideId "24180327"]
[WhiteElo "1729"]
[BlackElo "2348"]
[Result "1-0"]
[Round "03"]
[TimeControl "180+1"]
[Date "2022.01.18"]
[WhiteClock "0:00:44"]
[BlackClock "0:00:03"]

1. e4 {[%clk 0:03:00]}  Nf6 {[%clk 0:02:57]} 2. e5 {[%clk 0:03:00]}  Nd5 {[%clk 0:02:57]} 3. d4 {[%clk 0:03:01]}  d6 {[%clk 0:02:57]} 4. c4 {[%clk 0:03:02]}  Nb6 {[%clk 0:02:54]} 5. exd6 {[%clk 0:03:02]}  exd6 {[%clk 0:02:54]} 6. Nc3 {[%clk 0:03:02]}  Be7 {[%clk 0:02:54]} 7. Nf3 {[%clk 0:03:02]}  Bg4 {[%clk 0:02:52]} 8. h3 {[%clk 0:03:02]}  Bxf3 {[%clk 0:02:50]} 9. Qxf3 {[%clk 0:03:02]}  Nc6 {[%clk 0:02:50]} 10. Be3 {[%clk 0:03:02]}  O-O {[%clk 0:02:46]} 11. Bd3 {[%clk 0:03:01]}  Bf6 {[%clk 0:02:42]} 12. O-O {[%clk 0:02:54]}  Bxd4 {[%clk 0:02:31]} 13. Bxd4 {[%clk 0:02:43]}  Re8 {[%clk 0:02:27]} 14. Be3 {[%clk 0:02:38]}  Qh4 {[%clk 0:02:13]} 15. Rad1 {[%clk 0:02:25]}  Nxc4 {[%clk 0:02:07]} 16. g3 {[%clk 0:02:02]}  N6e5 {[%clk 0:01:40]} 17. Qxb7 {[%clk 0:01:43]}  Qxh3 {[%clk 0:01:37]} 18. Bxc4 {[%clk 0:01:41]}  Nxc4 {[%clk 0:01:32]} 19. Bc1 {[%clk 0:01:39]}  Ne5 {[%clk 0:00:44]} 20. Bf4 {[%clk 0:01:35]}  Ng6 {[%clk 0:00:18]} 21. Bc1 {[%clk 0:01:32]}  Ne5 {[%clk 0:00:16]} 22. Qg2 {[%clk 0:01:31]}  Qh5 {[%clk 0:00:15]} 23. f3 {[%clk 0:01:30]}  Qg6 {[%clk 0:00:10]} 24. f4 {[%clk 0:01:27]}  Ng4 {[%clk 0:00:09]} 25. Rfe1 {[%clk 0:01:26]}  Qh5 {[%clk 0:00:09]} 26. Nd5 {[%clk 0:01:22]}  c6 {[%clk 0:00:07]} 27. Ne3 {[%clk 0:01:17]}  Qc5 {[%clk 0:00:05]} 28. Qf3 {[%clk 0:01:13]}  h5 {[%clk 0:00:04]} 29. Kg2 {[%clk 0:01:11]}  Nf6 {[%clk 0:00:04]} 30. Qf2 {[%clk 0:00:59]}  Ne4 {[%clk 0:00:03]} 31. Qc2 {[%clk 0:00:59]}  Qb5 {[%clk 0:00:02]} 32. Nc4 {[%clk 0:00:55]}  d5 {[%clk 0:00:02]} 33. Ne5 {[%clk 0:00:53]}  Rac8 {[%clk 0:00:02]} 34. Qe2 {[%clk 0:00:49]}  Qb7 {[%clk 0:00:03]} 35. Qxh5 {[%clk 0:00:47]}  f6 {[%clk 0:00:03]} 36. Ng6 {[%clk 0:00:45]}  c5 {[%clk 0:00:03]} 37. Qxd5+ {[%clk 0:00:44]}  Qxd5 {[%clk 0:00:03]} 38. Rxd5 {[%clk 0:00:44]}  Kf7 {[%clk 0:00:03]} 39. f5 {[%clk 0:00:43]}  Rb8 {[%clk 0:00:03]} 40. Rd7+ {[%clk 0:00:43]}  Kg8 {[%clk 0:00:03]} 41. Rh1 {[%clk 0:00:44]} 1-0


[Site "https://www.chess.com"]

[Event "Titled Tuesday Blitz January 18 2022"]
[White "Kahlert, Thomas"]
[Black "Goryachkina, Aleksandra"]
[WhiteFideId "4625242"]
[BlackFideId "4147103"]
[WhiteElo "2228"]
[BlackElo "2426"]
[Result "0-1"]
[Round "03"]
[TimeControl "180+1"]
[Date "2022.01.18"]
[WhiteClock "0:01:06"]
[BlackClock "0:00:49"]

1. d4 {[%clk 0:03:00]}  d5 {[%clk 0:02:58]} 2. Nf3 {[%clk 0:02:59]}  Nf6 {[%clk 0:02:58]} 3. c4 {[%clk 0:02:59]}  dxc4 {[%clk 0:02:58]} 4. e3 {[%clk 0:02:58]}  e6 {[%clk 0:02:58]} 5. Bxc4 {[%clk 0:02:58]}  c5 {[%clk 0:02:58]} 6. O-O {[%clk 0:02:57]}  Nc6 {[%clk 0:02:57]} 7. Nc3 {[%clk 0:02:57]}  a6 {[%clk 0:02:31]} 8. a4 {[%clk 0:02:56]}  Be7 {[%clk 0:02:26]} 9. Qe2 {[%clk 0:02:56]}  O-O {[%clk 0:02:25]} 10. Rd1 {[%clk 0:02:56]}  Qc7 {[%clk 0:02:24]} 11. Bd2 {[%clk 0:02:56]}  b6 {[%clk 0:02:20]} 12. Rac1 {[%clk 0:02:55]}  Bb7 {[%clk 0:02:20]} 13. d5 {[%clk 0:02:55]}  exd5 {[%clk 0:02:20]} 14. Bxd5 {[%clk 0:02:55]}  Rad8 {[%clk 0:02:15]} 15. e4 {[%clk 0:02:55]}  Nb4 {[%clk 0:02:07]} 16. Bxb7 {[%clk 0:02:44]}  Qxb7 {[%clk 0:02:07]} 17. Bg5 {[%clk 0:02:43]}  h6 {[%clk 0:02:02]} 18. Bxf6 {[%clk 0:02:38]}  Bxf6 {[%clk 0:02:02]} 19. Nd5 {[%clk 0:02:35]}  Nxd5 {[%clk 0:01:59]} 20. exd5 {[%clk 0:02:36]}  Rxd5 {[%clk 0:01:56]} 21. Rxd5 {[%clk 0:02:35]}  Qxd5 {[%clk 0:01:56]} 22. Qxa6 {[%clk 0:02:35]}  Bxb2 {[%clk 0:01:49]} 23. Rb1 {[%clk 0:02:35]}  Qa2 {[%clk 0:01:33]} 24. Rd1 {[%clk 0:02:30]}  c4 {[%clk 0:01:32]} 25. Qxb6 {[%clk 0:02:12]}  c3 {[%clk 0:01:32]} 26. Nd4 {[%clk 0:02:08]}  Qxa4 {[%clk 0:01:27]} 27. Rf1 {[%clk 0:02:04]}  g6 {[%clk 0:01:10]} 28. g3 {[%clk 0:01:54]}  Rc8 {[%clk 0:01:08]} 29. Qb7 {[%clk 0:01:47]}  Qc4 {[%clk 0:01:02]} 30. Nc2 {[%clk 0:01:47]}  Re8 {[%clk 0:01:01]} 31. Qd7 {[%clk 0:01:37]}  Re2 {[%clk 0:00:57]} 32. Qd8+ {[%clk 0:01:16]}  Kg7 {[%clk 0:00:56]} 33. Qd4+ {[%clk 0:01:08]}  Qxd4 {[%clk 0:00:55]} 34. Nxd4 {[%clk 0:01:09]}  Rd2 {[%clk 0:00:50]} 35. Nb3 {[%clk 0:01:08]}  Rd5 {[%clk 0:00:50]} 36. Kg2 {[%clk 0:01:06]}  c2 {[%clk 0:00:49]} 0-1


[Site "https://www.chess.com"]

[Event "Titled Tuesday Blitz January 18 2022"]
[White "Klenburg, Michael"]
[Black "Wong, Yinn Long"]
[WhiteFideId "14102072"]
[BlackFideId "5707684"]
[WhiteElo "2359"]
[BlackElo "2055"]
[Result "1/2-1/2"]
[Round "03"]
[TimeControl "180+1"]
[Date "2022.01.18"]
[WhiteClock "0:00:11"]
[BlackClock "0:00:09"]

1. g3 {[%clk 0:02:59]}  c5 {[%clk 0:02:59]} 2. Bg2 {[%clk 0:02:59]}  g6 {[%clk 0:03:00]} 3. e4 {[%clk 0:02:59]}  Bg7 {[%clk 0:03:00]} 4. d3 {[%clk 0:02:59]}  Nc6 {[%clk 0:03:01]} 5. f4 {[%clk 0:02:59]}  d6 {[%clk 0:03:01]} 6. Nf3 {[%clk 0:02:59]}  Nf6 {[%clk 0:03:01]} 7. O-O {[%clk 0:02:59]}  Bg4 {[%clk 0:03:02]} 8. h3 {[%clk 0:02:58]}  Bxf3 {[%clk 0:03:02]} 9. Qxf3 {[%clk 0:02:58]}  O-O {[%clk 0:03:03]} 10. Kh2 {[%clk 0:02:58]}  Rc8 {[%clk 0:02:59]} 11. Qd1 {[%clk 0:02:58]}  e6 {[%clk 0:02:53]} 12. Nd2 {[%clk 0:02:57]}  d5 {[%clk 0:02:52]} 13. e5 {[%clk 0:02:55]}  Nd7 {[%clk 0:02:52]} 14. Nf3 {[%clk 0:02:55]}  f6 {[%clk 0:02:46]} 15. exf6 {[%clk 0:02:50]}  Qxf6 {[%clk 0:02:37]} 16. c3 {[%clk 0:02:50]}  Rce8 {[%clk 0:02:30]} 17. Bd2 {[%clk 0:02:38]}  Qd8 {[%clk 0:02:25]} 18. Qb3 {[%clk 0:02:32]}  Qc7 {[%clk 0:02:19]} 19. Rae1 {[%clk 0:02:32]}  Na5 {[%clk 0:02:14]} 20. Qa4 {[%clk 0:02:30]}  Nc6 {[%clk 0:02:03]} 21. Re2 {[%clk 0:02:23]}  e5 {[%clk 0:01:30]} 22. Rfe1 {[%clk 0:02:18]}  Qd8 {[%clk 0:01:24]} 23. Qb3 {[%clk 0:02:09]}  c4 {[%clk 0:01:12]} 24. dxc4 {[%clk 0:02:01]}  e4 {[%clk 0:01:04]} 25. cxd5 {[%clk 0:01:43]}  Na5 {[%clk 0:01:01]} 26. Qa4 {[%clk 0:01:42]}  exf3 {[%clk 0:00:51]} 27. Rxe8 {[%clk 0:01:42]}  Rxe8 {[%clk 0:00:52]} 28. Rxe8+ {[%clk 0:01:41]}  Qxe8 {[%clk 0:00:53]} 29. Bxf3 {[%clk 0:01:41]}  b6 {[%clk 0:00:48]} 30. Kg2 {[%clk 0:01:28]}  Nf6 {[%clk 0:00:45]} 31. Qxe8+ {[%clk 0:01:24]}  Nxe8 {[%clk 0:00:45]} 32. b3 {[%clk 0:01:19]}  Nd6 {[%clk 0:00:44]} 33. c4 {[%clk 0:01:17]}  Nab7 {[%clk 0:00:45]} 34. Kf2 {[%clk 0:01:10]}  Bd4+ {[%clk 0:00:43]} 35. Be3 {[%clk 0:01:06]}  Bxe3+ {[%clk 0:00:34]} 36. Kxe3 {[%clk 0:01:06]}  Nf5+ {[%clk 0:00:35]} 37. Kf2 {[%clk 0:01:06]}  Kf7 {[%clk 0:00:25]} 38. g4 {[%clk 0:01:03]}  Nfd6 {[%clk 0:00:26]} 39. Ke3 {[%clk 0:01:02]}  Kf6 {[%clk 0:00:20]} 40. Kd4 {[%clk 0:01:00]}  g5 {[%clk 0:00:21]} 41. fxg5+ {[%clk 0:00:58]}  Kxg5 {[%clk 0:00:21]} 42. b4 {[%clk 0:00:58]}  Kf4 {[%clk 0:00:13]} 43. Bd1 {[%clk 0:00:56]}  a5 {[%clk 0:00:13]} 44. a3 {[%clk 0:00:55]}  Kg3 {[%clk 0:00:12]} 45. Bc2 {[%clk 0:00:47]}  h6 {[%clk 0:00:12]} 46. Bd3 {[%clk 0:00:46]}  axb4 {[%clk 0:00:07]} 47. axb4 {[%clk 0:00:45]}  Kxh3 {[%clk 0:00:07]} 48. c5 {[%clk 0:00:44]}  bxc5+ {[%clk 0:00:05]} 49. bxc5 {[%clk 0:00:43]}  Ne8 {[%clk 0:00:05]} 50. Bf5 {[%clk 0:00:38]}  Kh4 {[%clk 0:00:03]} 51. Bc8 {[%clk 0:00:36]}  Nd8 {[%clk 0:00:02]} 52. Ke5 {[%clk 0:00:21]}  Kg5 {[%clk 0:00:02]} 53. Bd7 {[%clk 0:00:19]}  Nc7 {[%clk 0:00:02]} 54. d6 {[%clk 0:00:18]}  Na6 {[%clk 0:00:03]} 55. c6 {[%clk 0:00:17]}  Nxc6+ {[%clk 0:00:03]} 56. Bxc6 {[%clk 0:00:16]}  Kxg4 {[%clk 0:00:03]} 57. d7 {[%clk 0:00:15]}  Nb8 {[%clk 0:00:04]} 58. Kd6 {[%clk 0:00:11]}  Nxd7 {[%clk 0:00:04]} 59. Bxd7+ {[%clk 0:00:11]}  Kg5 {[%clk 0:00:05]} 60. Be6 {[%clk 0:00:11]}  h5 {[%clk 0:00:06]} 61. Bd7 {[%clk 0:00:11]}  Kf4 {[%clk 0:00:07]} 62. Be6 {[%clk 0:00:11]}  h4 {[%clk 0:00:07]} 63. Bd7 {[%clk 0:00:11]}  Kg3 {[%clk 0:00:08]} 64. Be6 {[%clk 0:00:11]}  h3 {[%clk 0:00:09]} 65. Bxh3 {[%clk 0:00:11]} 1/2-1/2


[Site "https://www.chess.com"]

[Event "Titled Tuesday Blitz January 18 2022"]
[White "Koziorowicz, Michal"]
[Black "Pultinevicius, Paulius"]
[WhiteFideId "21809194"]
[BlackFideId "12809390"]
[WhiteElo "2166"]
[BlackElo "2413"]
[Result "0-1"]
[Round "03"]
[TimeControl "180+1"]
[Date "2022.01.18"]
[WhiteClock "0:00:07"]
[BlackClock "0:01:28"]

1. e4 {[%clk 0:03:00]}  c6 {[%clk 0:02:58]} 2. d4 {[%clk 0:02:59]}  d5 {[%clk 0:02:59]} 3. e5 {[%clk 0:03:00]}  Bf5 {[%clk 0:02:59]} 4. h4 {[%clk 0:02:59]}  h5 {[%clk 0:02:59]} 5. c4 {[%clk 0:02:59]}  e6 {[%clk 0:02:57]} 6. Nc3 {[%clk 0:02:57]}  Bb4 {[%clk 0:02:58]} 7. Qb3 {[%clk 0:02:47]}  a5 {[%clk 0:02:55]} 8. a3 {[%clk 0:02:39]}  dxc4 {[%clk 0:02:55]} 9. Bxc4 {[%clk 0:02:34]}  Bxc3+ {[%clk 0:02:54]} 10. bxc3 {[%clk 0:02:35]}  b5 {[%clk 0:02:53]} 11. Be2 {[%clk 0:02:33]}  a4 {[%clk 0:02:53]} 12. Qb4 {[%clk 0:02:21]}  Ne7 {[%clk 0:02:51]} 13. Bg5 {[%clk 0:02:20]}  Na6 {[%clk 0:02:35]} 14. Qb2 {[%clk 0:01:43]}  Nc7 {[%clk 0:02:34]} 15. Bf3 {[%clk 0:01:42]}  Ncd5 {[%clk 0:02:30]} 16. Ne2 {[%clk 0:01:41]}  Qd7 {[%clk 0:02:27]} 17. O-O {[%clk 0:01:37]}  Bg4 {[%clk 0:02:11]} 18. Bxg4 {[%clk 0:01:11]}  hxg4 {[%clk 0:02:12]} 19. Bxe7 {[%clk 0:01:00]}  Qxe7 {[%clk 0:02:09]} 20. g3 {[%clk 0:01:00]}  g5 {[%clk 0:02:08]} 21. h5 {[%clk 0:00:43]}  f5 {[%clk 0:01:53]} 22. c4 {[%clk 0:00:34]}  Qh7 {[%clk 0:01:45]} 23. Rfc1 {[%clk 0:00:24]}  Qxh5 {[%clk 0:01:43]} 24. Kf1 {[%clk 0:00:25]}  Qh1+ {[%clk 0:01:30]} 25. Ng1 {[%clk 0:00:25]}  Rh2 {[%clk 0:01:31]} 26. Rc2 {[%clk 0:00:07]}  Qg2+ {[%clk 0:01:28]} 27. Ke2 {[%clk 0:00:06]}  Qxf2+ {[%clk 0:01:28]} 28. Kd3 {[%clk 0:00:07]}  Qe3# {[%clk 0:01:28]} 0-1


[Site "https://www.chess.com"]

[Event "Titled Tuesday Blitz January 18 2022"]
[White "Kravtsiv, Martyn"]
[Black "Tania, Sachdev"]
[WhiteFideId "14113147"]
[BlackFideId "5007844"]
[WhiteElo "2694"]
[BlackElo "2280"]
[Result "1-0"]
[Round "03"]
[TimeControl "180+1"]
[Date "2022.01.18"]
[WhiteClock "0:02:29"]
[BlackClock "0:02:13"]

1. e4 {[%clk 0:03:00]}  e5 {[%clk 0:03:00]} 2. Nf3 {[%clk 0:03:00]}  Nc6 {[%clk 0:03:00]} 3. Nc3 {[%clk 0:03:00]}  Nf6 {[%clk 0:03:00]} 4. a4 {[%clk 0:03:00]}  Bb4 {[%clk 0:02:59]} 5. Bd3 {[%clk 0:02:59]}  d6 {[%clk 0:02:56]} 6. O-O {[%clk 0:02:58]}  O-O {[%clk 0:02:56]} 7. Nd5 {[%clk 0:02:58]}  Nxd5 {[%clk 0:02:55]} 8. exd5 {[%clk 0:02:58]}  Nb8 {[%clk 0:02:50]} 9. c3 {[%clk 0:02:56]}  Bc5 {[%clk 0:02:49]} 10. b4 {[%clk 0:02:57]}  f5 {[%clk 0:02:44]} 11. Bc2 {[%clk 0:02:51]}  e4 {[%clk 0:02:42]} 12. Ne1 {[%clk 0:02:51]}  Bxf2+ {[%clk 0:02:35]} 13. Rxf2 {[%clk 0:02:50]}  Nd7 {[%clk 0:02:35]} 14. d3 {[%clk 0:02:48]}  Nf6 {[%clk 0:02:36]} 15. dxe4 {[%clk 0:02:39]}  Nxe4 {[%clk 0:02:14]} 16. Bxe4 {[%clk 0:02:38]}  fxe4 {[%clk 0:02:15]} 17. Rxf8+ {[%clk 0:02:37]}  Qxf8 {[%clk 0:02:16]} 18. Nc2 {[%clk 0:02:36]}  Qf6 {[%clk 0:02:14]} 19. Qd4 {[%clk 0:02:35]}  Qh4 {[%clk 0:02:13]} 20. Bd2 {[%clk 0:02:29]} 1-0


[Site "https://www.chess.com"]

[Event "Titled Tuesday Blitz January 18 2022"]
[White "Kukhmazov, Arsen"]
[Black "Tsyhanchuk, Stanislav"]
[WhiteFideId "24108260"]
[BlackFideId "13505130"]
[WhiteElo "2487"]
[BlackElo "2078"]
[Result "0-1"]
[Round "03"]
[TimeControl "180+1"]
[Date "2022.01.18"]
[WhiteClock "0:01:39"]
[BlackClock "0:01:33"]

1. b3 {[%clk 0:02:59]}  c5 {[%clk 0:02:59]} 2. Bb2 {[%clk 0:02:59]}  Nc6 {[%clk 0:02:59]} 3. f4 {[%clk 0:02:54]}  Nf6 {[%clk 0:02:58]} 4. Nf3 {[%clk 0:02:54]}  d5 {[%clk 0:02:59]} 5. e3 {[%clk 0:02:54]}  g6 {[%clk 0:02:59]} 6. Bb5 {[%clk 0:02:55]}  Bd7 {[%clk 0:02:59]} 7. O-O {[%clk 0:02:54]}  Bg7 {[%clk 0:02:59]} 8. d3 {[%clk 0:02:54]}  O-O {[%clk 0:02:58]} 9. Qe2 {[%clk 0:02:54]}  a6 {[%clk 0:02:58]} 10. Bxc6 {[%clk 0:02:54]}  Bxc6 {[%clk 0:02:59]} 11. Nbd2 {[%clk 0:02:55]}  b5 {[%clk 0:02:55]} 12. Ne5 {[%clk 0:02:55]}  Bb7 {[%clk 0:02:55]} 13. Rad1 {[%clk 0:02:50]}  e6 {[%clk 0:02:54]} 14. e4 {[%clk 0:02:42]}  dxe4 {[%clk 0:02:36]} 15. Nxe4 {[%clk 0:02:38]}  Qc7 {[%clk 0:02:31]} 16. Ng5 {[%clk 0:02:38]}  Nd5 {[%clk 0:02:27]} 17. Rde1 {[%clk 0:02:26]}  Rae8 {[%clk 0:02:25]} 18. Qg4 {[%clk 0:02:16]}  c4 {[%clk 0:01:58]} 19. dxc4 {[%clk 0:01:58]}  Qb6+ {[%clk 0:01:48]} 20. Kh1 {[%clk 0:01:58]}  Ne3 {[%clk 0:01:49]} 21. Qh3 {[%clk 0:01:58]}  Bxg2+ {[%clk 0:01:47]} 22. Qxg2 {[%clk 0:01:54]}  Nxg2 {[%clk 0:01:47]} 23. Kxg2 {[%clk 0:01:51]}  f6 {[%clk 0:01:47]} 24. c5 {[%clk 0:01:39]}  Qc7 {[%clk 0:01:33]} 0-1


[Site "https://www.chess.com"]

[Event "Titled Tuesday Blitz January 18 2022"]
[White "Leitao, Rafael"]
[Black "Seemann, Jakub"]
[WhiteFideId "2101246"]
[BlackFideId "21874697"]
[WhiteElo "2609"]
[BlackElo "2003"]
[Result "0-1"]
[Round "03"]
[TimeControl "180+1"]
[Date "2022.01.18"]
[WhiteClock "0:00:05"]
[BlackClock "0:00:04"]

1. c4 {[%clk 0:03:00]}  Nf6 {[%clk 0:02:59]} 2. Nc3 {[%clk 0:02:58]}  g6 {[%clk 0:02:59]} 3. g3 {[%clk 0:02:55]}  Bg7 {[%clk 0:02:59]} 4. Bg2 {[%clk 0:02:56]}  O-O {[%clk 0:02:58]} 5. d4 {[%clk 0:02:56]}  d6 {[%clk 0:02:57]} 6. Nf3 {[%clk 0:02:56]}  Nc6 {[%clk 0:02:57]} 7. O-O {[%clk 0:02:55]}  Bg4 {[%clk 0:02:57]} 8. h3 {[%clk 0:02:53]}  Bxf3 {[%clk 0:02:58]} 9. Bxf3 {[%clk 0:02:53]}  Nd7 {[%clk 0:02:58]} 10. e3 {[%clk 0:02:51]}  e5 {[%clk 0:02:58]} 11. d5 {[%clk 0:02:51]}  Ne7 {[%clk 0:02:59]} 12. e4 {[%clk 0:02:47]}  f5 {[%clk 0:02:59]} 13. Bd2 {[%clk 0:02:41]}  Nf6 {[%clk 0:02:58]} 14. Rc1 {[%clk 0:02:36]}  Qd7 {[%clk 0:02:52]} 15. Kh2 {[%clk 0:02:20]}  f4 {[%clk 0:02:39]} 16. Qa4 {[%clk 0:01:59]}  c6 {[%clk 0:02:21]} 17. c5 {[%clk 0:01:40]}  dxc5 {[%clk 0:02:17]} 18. Qc4 {[%clk 0:01:40]}  cxd5 {[%clk 0:02:09]} 19. Nxd5 {[%clk 0:01:27]}  Nexd5 {[%clk 0:02:03]} 20. exd5 {[%clk 0:01:27]}  b5 {[%clk 0:01:48]} 21. Qxc5 {[%clk 0:01:19]}  e4 {[%clk 0:01:48]} 22. Be2 {[%clk 0:01:14]}  e3 {[%clk 0:00:54]} 23. fxe3 {[%clk 0:00:50]}  fxg3+ {[%clk 0:00:54]} 24. Kg2 {[%clk 0:00:50]}  Ne4 {[%clk 0:00:53]} 25. Qc6 {[%clk 0:00:42]}  Qxc6 {[%clk 0:00:51]} 26. dxc6 {[%clk 0:00:43]}  Rxf1 {[%clk 0:00:47]} 27. Bxf1 {[%clk 0:00:43]}  Nxd2 {[%clk 0:00:47]} 28. Bxb5 {[%clk 0:00:41]}  Rc8 {[%clk 0:00:35]} 29. c7 {[%clk 0:00:25]}  Be5 {[%clk 0:00:35]} 30. Rd1 {[%clk 0:00:26]}  Rxc7 {[%clk 0:00:23]} 31. Rxd2 {[%clk 0:00:25]}  Rb7 {[%clk 0:00:23]} 32. Bc4+ {[%clk 0:00:24]}  Kg7 {[%clk 0:00:23]} 33. b3 {[%clk 0:00:25]}  Re7 {[%clk 0:00:18]} 34. Rd8 {[%clk 0:00:22]}  h5 {[%clk 0:00:15]} 35. Rg8+ {[%clk 0:00:21]}  Kh6 {[%clk 0:00:15]} 36. Bd3 {[%clk 0:00:20]}  Bg7 {[%clk 0:00:10]} 37. Kf3 {[%clk 0:00:15]}  g2 {[%clk 0:00:10]} 38. Kxg2 {[%clk 0:00:14]}  Rxe3 {[%clk 0:00:10]} 39. Bc4 {[%clk 0:00:15]}  Be5 {[%clk 0:00:09]} 40. h4 {[%clk 0:00:12]}  Rg3+ {[%clk 0:00:05]} 41. Kf2 {[%clk 0:00:12]}  Rg4 {[%clk 0:00:06]} 42. Bd3 {[%clk 0:00:11]}  Bg3+ {[%clk 0:00:06]} 43. Ke2 {[%clk 0:00:11]}  Bxh4 {[%clk 0:00:07]} 44. Ra8 {[%clk 0:00:10]}  Rg2+ {[%clk 0:00:07]} 45. Kf3 {[%clk 0:00:10]}  Rxa2 {[%clk 0:00:05]} 46. Rg8 {[%clk 0:00:10]}  Rf2+ {[%clk 0:00:05]} 47. Ke3 {[%clk 0:00:09]}  Rg2 {[%clk 0:00:06]} 48. Kf3 {[%clk 0:00:09]}  Rg3+ {[%clk 0:00:06]} 49. Ke4 {[%clk 0:00:09]}  Rg4+ {[%clk 0:00:05]} 50. Kf3 {[%clk 0:00:09]}  Bf6 {[%clk 0:00:05]} 51. Be4 {[%clk 0:00:09]}  Be5 {[%clk 0:00:05]} 52. Re8 {[%clk 0:00:10]}  Rf4+ {[%clk 0:00:05]} 53. Ke3 {[%clk 0:00:10]}  Bc7 {[%clk 0:00:02]} 54. Rc8 {[%clk 0:00:10]}  Bd6 {[%clk 0:00:02]} 55. Rd8 {[%clk 0:00:10]}  Rf6 {[%clk 0:00:02]} 56. Kd4 {[%clk 0:00:09]}  Kg5 {[%clk 0:00:03]} 57. Kd5 {[%clk 0:00:10]}  Bf4 {[%clk 0:00:03]} 58. Rg8 {[%clk 0:00:09]}  Rd6+ {[%clk 0:00:03]} 59. Kc5 {[%clk 0:00:09]}  h4 {[%clk 0:00:04]} 60. Rf8 {[%clk 0:00:08]}  Rf6 {[%clk 0:00:04]} 61. Rg8 {[%clk 0:00:07]}  Be3+ {[%clk 0:00:04]} 62. Kd5 {[%clk 0:00:07]}  Bf4 {[%clk 0:00:04]} 63. Rh8 {[%clk 0:00:07]}  Bg3 {[%clk 0:00:04]} 64. b4 {[%clk 0:00:06]}  Kg4 {[%clk 0:00:05]} 65. b5 {[%clk 0:00:06]}  g5 {[%clk 0:00:05]} 66. Kd4 {[%clk 0:00:06]}  h3 {[%clk 0:00:05]} 67. Kd3 {[%clk 0:00:06]}  h2 {[%clk 0:00:05]} 68. Bd5 {[%clk 0:00:05]}  Rf2 {[%clk 0:00:06]} 69. Be6+ {[%clk 0:00:05]}  Kf4 {[%clk 0:00:06]} 70. Bd5 {[%clk 0:00:04]}  Ke5 {[%clk 0:00:05]} 71. Bc6 {[%clk 0:00:04]}  g4 {[%clk 0:00:06]} 72. Re8+ {[%clk 0:00:04]}  Kd6 {[%clk 0:00:05]} 73. Rd8+ {[%clk 0:00:04]}  Kc7 {[%clk 0:00:05]} 74. Rg8 {[%clk 0:00:04]}  Rf3+ {[%clk 0:00:03]} 75. Bxf3 {[%clk 0:00:03]}  gxf3 {[%clk 0:00:03]} 76. Rh8 {[%clk 0:00:04]}  Kb6 {[%clk 0:00:04]} 77. Ke3 {[%clk 0:00:04]}  Kxb5 {[%clk 0:00:04]} 78. Kxf3 {[%clk 0:00:04]}  Be5 {[%clk 0:00:05]} 79. Kg2 {[%clk 0:00:05]}  Bxh8 {[%clk 0:00:04]} 0-1


[Site "https://www.chess.com"]